bitfinex/quotes_ETHUSD_20220202
["timestamp","ask_amount","ask_price","bid_price","bid_amount"]
[1643804210889,13.47788407,2791.0,2790.9,5.41495558]
[1643804212089,13.47788407,2791.0,2790.9,5.89420558]
[1643804213298,13.47788407,2791.0,2790.9,5.41495558]
[1643804213498,13.47788407,2791.0,2790.9,5.71495558]
[1643804213700,13.47788407,2791.0,2790.9,5.41495558]
[1643804213897,13.47788407,2791.0,2790.9,5.89420558]
[1643804214098,13.47788407,2791.0,2790.9,5.41495558]
[1643804214536,13.47788407,2791.0,2790.9,4.89895558]
[1643804214737,13.47788407,2791.0,2790.9,5.56722923]
[1643804215337,13.47788407,2791.0,2790.9,4.89895558]
[1643804216139,13.47788407,2791.0,2790.9,3.69596558]
[1643804216339,13.47788407,2791.0,2790.9,4.69596558]
[1643804216541,13.47788407,2791.0,2790.9,5.56722923]
[1643804218398,13.47788407,2791.0,2790.9,4.56722923]
[1643804218596,13.47788407,2791.0,2790.7,1.79115]
[1643804218797,13.47788407,2791.0,2790.8,0.93183672]
[1643804218798,13.66788908,2791.0,2790.8,0.93183672]
[1643804219098,0.56662723,2790.9,2790.8,0.93183672]
[1643804219292,0.74572723,2790.9,2790.8,0.93183672]
[1643804219498,0.74572723,2790.9,2790.2,1.60260125]
[1643804219695,0.1791,2790.8,2790.4,0.66827365]
[1643804219894,13.47788407,2791.0,2790.5,1.60011037]
[1643804219895,0.1791,2790.9,2790.5,1.60011037]
[1643804220195,0.1791,2790.9,2790.6,1.80310037]
[1643804220496,13.47788407,2791.0,2790.7,0.93183672]
[1643804220900,13.47788407,2791.0,2790.7,1.60011037]
[1643804221095,13.47788407,2791.0,2790.8,0.93183672]
[1643804221295,13.47788407,2791.0,2790.9,0.93183672]
[1643804221497,14.04453694,2791.0,2790.4,0.66827365]
[1643804221695,13.47788407,2791.0,2790.4,0.66827365]
[1643804221940,13.72278398,2791.0,2790.9,0.43370629]
[1643804222139,12.45228932,2791.0,2790.9,0.43370629]
[1643804222342,12.45228932,2791.0,2790.9,1.36554301]
[1643804223343,12.45228932,2791.0,2790.9,0.93183672]
[1643804223547,12.45228932,2791.0,2790.6,0.00249088]
[1643804223744,12.45228932,2791.0,2789.9,1.9282]
[1643804223745,0.1791,2790.9,2790.4,0.00249088]
[1643804224143,0.1791,2790.9,2790.2,0.00249088]
[1643804224346,0.77724795,2790.8,2790.2,0.00249088]
[1643804225144,0.1791,2790.7,2790.2,0.00249088]
[1643804225345,2.1791,2790.7,2790.0,0.00249088]
[1643804225598,0.1791,2790.7,2790.0,0.00249088]
[1643804225798,0.1791,2790.8,2790.0,0.87375453]
[1643804225999,0.1791,2790.8,2790.1,0.00249088]
[1643804226799,0.1791,2790.8,2790.2,0.89581]
[1643804227002,0.81745618,2790.6,2790.2,2.68743]
[1643804227203,0.81745618,2790.6,2790.2,3.5832325]
[1643804227401,0.1791,2790.8,2790.2,3.5832325]
[1643804227602,1.4244,2790.9,2790.2,2.6874225]
[1643804227804,1.4244,2790.9,2790.3,0.00249088]
[1643804228105,1.61467008,2790.9,2790.3,0.00249088]
[1643804228605,1.4244,2790.9,2790.3,0.00249088]
[1643804228810,0.83485081,2790.8,2790.3,0.00249088]
[1643804229005,0.83485081,2790.8,2790.2,2.6874225]
[1643804229209,0.83485081,2790.8,2790.1,0.00249088]
[1643804229210,0.83485081,2790.8,2790.4,2.6872154]
[1643804229861,1.2453,2790.9,2790.4,2.6872154]
[1643804230059,11.85532291,2791.0,2790.5,1.0]
[1643804230260,11.85532291,2791.0,2790.6,3.12845197]
[1643804230561,11.85532291,2791.0,2790.6,1.1955833]
[1643804231168,11.85532291,2791.0,2790.6,2.0912233]
[1643804231761,11.85532291,2791.0,2790.6,2.9868633]
[1643804231962,11.85532291,2791.0,2790.6,3.8824733]
[1643804233302,3.7,2790.7,2789.9,1.47665682]
[1643804233506,3.7,2790.7,2789.8,11.25317]
[1643804233507,0.01315569,2790.7,2790.5,0.00250265]
[1643804233702,1.6827,2790.9,2790.5,0.00250265]
[1643804233703,1.8618,2790.9,2790.5,0.00250265]
[1643804234103,1.8618,2790.9,2790.0,0.00250265]
[1643804234303,1.3458,2790.9,2790.0,0.00250265]
[1643804234501,1.3458,2790.9,2790.3,0.20119198]
[1643804234702,1.3458,2790.9,2790.0,0.20501265]
[1643804234901,1.3458,2790.9,2790.1,0.00250265]
[1643804235902,0.72320909,2790.8,2790.2,0.89573]
[1643804236103,0.72320909,2790.8,2790.3,0.00250265]
[1643804237141,0.72320909,2790.8,2790.1,0.89825265]
[1643804237344,0.72320909,2790.8,2790.1,0.00250265]
[1643804240246,0.2466093,2790.6,2790.1,0.00250265]
[1643804240445,0.72320909,2790.8,2790.0,0.20251]
[1643804241089,0.72320909,2790.8,2790.1,0.00250265]
[1643804242090,1.3458,2790.9,2790.1,0.00250265]
[1643804242292,1.6458,2790.9,2790.1,0.00250265]
[1643804242491,1.6458,2790.9,2789.9,0.00250265]
[1643804243197,1.57916814,2790.9,2789.9,0.00250265]
[1643804243596,1.57916814,2790.9,2789.9,0.77900386]
[1643804243597,0.71821404,2790.8,2789.9,0.77900386]
[1643804243796,0.1791,2790.7,2789.9,0.77900386]
[1643804244199,0.1791,2790.8,2789.9,0.77900386]
[1643804244448,0.7182332,2790.7,2790.0,0.77650121]
[1643804244646,0.7182332,2790.7,2790.1,0.77900386]
[1643804244847,2.05344897,2790.6,2790.1,0.00250265]
[1643804245047,2.41254797,2790.8,2790.1,0.00250265]
[1643804245247,0.71812406,2790.7,2789.8,1.67479778]
[1643804245451,0.71812406,2790.7,2789.9,0.77635513]
[1643804245646,2.39424629,2790.8,2789.9,0.77635513]
[1643804245851,0.1791,2790.8,2790.0,0.00250265]
[1643804246051,0.1791,2790.8,2790.0,0.77885778]
[1643804246350,0.71843877,2790.7,2790.1,0.77635513]
[1643804246550,0.71843877,2790.7,2790.2,0.77635513]
[1643804246754,0.71843877,2790.7,2790.1,0.00250265]
[1643804246755,0.80360264,2790.5,2790.1,0.00250265]
[1643804247152,0.80360264,2790.5,2789.8,0.77808151]
[1643804247751,0.1791,2790.8,2789.8,0.77808151]
[1643804247953,1.3458,2790.9,2789.9,0.1791]
[1643804248202,0.71832841,2790.8,2790.0,0.77808151]
[1643804248404,2.07085668,2790.7,2790.0,0.77808151]
[1643804248602,0.71832841,2790.6,2790.1,0.77557886]
[1643804248803,0.68490281,2790.4,2790.1,0.77808151]
[1643804249004,0.68490281,2790.4,2790.1,0.00250265]
[1643804249407,0.68490281,2790.4,2789.9,0.77555972]
[1643804249707,0.68490281,2790.4,2790.0,0.77555972]
[1643804249908,0.1791,2790.7,2789.7,0.00250265]
[1643804250108,0.71845756,2790.6,2789.7,0.00250265]
[1643804250308,0.3,2790.5,2789.7,0.00250265]
[1643804250510,0.71865398,2790.4,2789.7,0.00250265]
[1643804250711,2.71863059,2790.3,2789.7,0.00250265]
[1643804250909,0.89783059,2790.2,2789.7,0.00250265]
[1643804251109,0.71863059,2790.1,2789.7,0.00250265]
[1643804251310,0.71863059,2790.1,2789.6,0.77568724]
[1643804251311,1.31863059,2790.1,2789.6,0.77568724]
[1643804251510,0.6,2790.1,2789.6,0.77568724]
[1643804251709,1.8666971,2790.2,2789.6,0.77568724]
[1643804251948,1.6874971,2790.2,2789.6,0.77818989]
[1643804252144,0.71956862,2790.1,2789.6,0.77818989]
[1643804252343,0.1792,2790.3,2789.6,0.79082552]
[1643804252546,1.1995,2790.5,2789.7,0.77568724]
[1643804252944,0.71951956,2790.4,2789.7,0.77568724]
[1643804253151,2.71951956,2790.4,2789.8,0.00250265]
[1643804253351,0.9609446,2790.1,2789.8,0.00250265]
[1643804253549,0.1792,2790.4,2789.8,0.00250265]
[1643804253750,0.1792,2790.4,2789.5,0.77818989]
[1643804253751,0.71937338,2790.3,2789.5,0.77818989]
[1643804253950,1.91556338,2790.3,2789.6,0.77568724]
[1643804254151,1.91556338,2790.3,2789.2,0.00250265]
[1643804254152,1.23537338,2790.2,2789.2,0.00250265]
[1643804254455,0.89857338,2790.1,2789.2,0.00250265]
[1643804254651,0.92645245,2789.6,2789.2,0.00250265]
[1643804254850,1.22645245,2789.6,2789.1,0.77542638]
[1643804255051,0.89641,2789.8,2789.2,0.77542638]
[1643804255052,0.1792,2789.7,2789.2,0.77542638]
[1643804255249,2.36387665,2789.7,2789.3,0.77542638]
[1643804255454,0.3,2789.7,2789.4,0.77542638]
[1643804255704,0.7792,2789.9,2789.0,0.77792903]
[1643804255905,0.7792,2789.9,2789.1,0.77511357]
[1643804255906,0.53677358,2789.9,2789.1,0.77511357]
[1643804256211,1.15784004,2789.9,2789.2,0.00250265]
[1643804256405,1.15784004,2789.9,2789.2,0.77761622]
[1643804256606,1.15784004,2789.9,2789.3,0.77511357]
[1643804256806,1.15784004,2789.9,2789.4,0.77511357]
[1643804257109,1.15784004,2789.9,2789.3,0.00250265]
[1643804257306,1.15784004,2789.9,2789.0,0.77753268]
[1643804257509,0.92106646,2789.9,2789.0,0.77753268]
[1643804257906,0.92106646,2789.9,2789.1,0.00250265]
[1643804258107,1.22106646,2789.9,2789.1,0.00250265]
[1643804259106,0.22103294,2789.8,2789.1,0.00250265]
[1643804259345,1.52106646,2789.9,2789.1,0.00250265]
[1643804260349,0.26537385,2789.8,2789.1,0.00250265]
[1643804260547,1.52106646,2789.9,2789.1,0.18170265]
[1643804260747,1.52106646,2789.9,2789.2,0.77753268]
[1643804261148,1.52106646,2789.9,2789.3,0.77753268]
[1643804261349,1.52106646,2789.9,2789.4,0.77503003]
[1643804261549,1.72232238,2789.9,2789.5,0.77503003]
[1643804261753,1.72232238,2789.9,2789.3,0.00250265]
[1643804261958,1.72232238,2789.9,2789.1,0.77762639]
[1643804262554,1.72232238,2789.9,2789.2,0.00250265]
[1643804263403,1.721043,2789.9,2789.2,0.00250265]
[1643804264105,1.23674852,2789.8,2789.2,0.00250265]
[1643804264303,0.6952,2789.8,2789.2,0.00250265]
[1643804264504,0.6952,2789.8,2789.2,0.77512374]
[1643804264704,0.6952,2789.8,2789.3,0.77512374]
[1643804264908,0.90152557,2789.5,2789.4,0.77512374]
[1643804265105,0.22828886,2789.5,2789.4,0.77512374]
[1643804265504,0.22828886,2789.5,2788.9,0.1792]
[1643804265708,0.22828886,2789.5,2789.0,0.75872342]
[1643804265709,0.516,2789.4,2789.0,0.75872342]
[1643804266105,0.516,2789.4,2789.1,0.75872342]
[1643804266405,0.516,2789.4,2789.2,0.75872342]
[1643804266604,0.516,2789.4,2788.4,0.84481995]
[1643804266605,0.516,2789.4,2788.6,0.00250265]
[1643804266844,0.516,2789.4,2788.5,0.6611349]
[1643804267046,0.1792,2789.3,2788.5,2.66363756]
[1643804267249,0.1792,2789.6,2788.5,0.00250266]
[1643804268044,0.43994158,2789.6,2788.5,0.00250266]
[1643804268248,0.43994158,2789.6,2788.4,0.1792]
[1643804268450,1.33638158,2789.6,2788.4,0.1792]
[1643804268650,0.01028887,2789.5,2788.4,0.1792]
[1643804268850,0.6952,2789.4,2788.4,0.1792]
[1643804269352,1.46905072,2789.3,2788.5,0.00250266]
[1643804269549,0.99362217,2789.2,2788.5,0.00250266]
[1643804269952,0.1792,2789.2,2788.5,0.00250266]
[1643804270599,0.1292,2789.2,2788.5,0.00250266]
[1643804270801,1.4627,2789.3,2788.5,0.00250266]
[1643804271199,1.4627,2789.3,2788.4,0.1792]
[1643804272000,1.6419,2789.3,2788.4,0.1792]
[1643804272200,1.9419,2789.3,2788.4,0.1792]
[1643804272400,0.25873237,2788.9,2788.4,0.1792]
[1643804272605,1.05721714,2790.9,2788.9,6.5]
[1643804272805,1.0362,2791.3,2788.9,6.5]
[1643804272806,0.67893211,2791.8,2790.8,1.0]
[1643804273006,2.26380099,2792.7,2790.8,1.0]
[1643804273007,1.35767039,2792.8,2791.8,0.03125]
[1643804273206,6.38757522,2794.0,2792.1,0.0124]
[1643804273207,0.67873598,2792.3,2792.1,0.0124]
[1643804273406,0.67873598,2793.2,2792.0,0.25]
[1643804273604,0.2688669,2793.2,2792.1,2.52804973]
[1643804273909,0.2688669,2793.2,2792.4,4.4750627]
[1643804274107,0.2688669,2793.2,2792.6,0.89512]
[1643804274349,0.2688669,2793.2,2792.8,0.8951185]
[1643804274552,0.2688669,2793.2,2792.9,0.516]
[1643804275153,0.13,2793.1,2792.9,0.516]
[1643804275349,0.13,2793.2,2792.9,0.516]
[1643804275549,0.13,2794.4,2792.9,0.516]
[1643804275750,5.7011,2794.6,2792.9,0.516]
[1643804275751,0.13,2794.5,2792.9,0.516]
[1643804275953,0.99999999,2794.2,2792.9,0.516]
[1643804276152,0.25957629,2793.2,2792.9,0.516]
[1643804276351,0.13,2793.1,2792.9,0.516]
[1643804276753,0.13,2793.6,2792.9,0.516]
[1643804277553,0.20345181,2793.5,2792.9,0.516]
[1643804277855,0.13,2793.4,2792.9,0.516]
[1643804278915,0.2314819,2793.0,2792.9,0.516]
[1643804281417,1.12999999,2793.6,2792.9,0.516]
[1643804281418,0.8119954,2793.2,2792.9,0.516]
[1643804281620,1.13,2793.6,2792.9,0.516]
[1643804281621,0.13,2793.6,2793.0,2.0]
[1643804281852,0.13,2793.6,2792.3,0.89512]
[1643804281853,0.13,2793.6,2793.1,0.516]
[1643804282051,1.1947,2794.3,2792.8,0.26261983]
[1643804282052,0.13,2794.2,2793.2,0.516]
[1643804282253,0.13,2794.2,2793.3,0.516]
[1643804282451,0.13,2794.2,2793.4,0.516]
[1643804282452,0.25618463,2793.6,2793.4,0.516]
[1643804282650,0.25618463,2793.6,2792.9,2.0]
[1643804282651,0.25618463,2793.6,2793.5,0.516]
[1643804282850,0.25618463,2793.6,2793.1,0.516]
[1643804284257,0.25618463,2793.6,2793.1,0.51448998]
[1643804284658,0.38618463,2793.6,2793.1,0.51448998]
[1643804288210,0.33618463,2793.6,2793.1,0.51448998]
[1643804288609,0.20618463,2793.6,2793.1,0.51448998]
[1643804288810,0.20618463,2793.6,2792.9,0.1789]
[1643804289009,0.20618463,2793.6,2792.9,3.6789]
[1643804290052,0.20618463,2793.6,2792.9,3.5]
[1643804290251,0.20618463,2793.6,2792.9,3.6789]
[1643804290853,0.20618463,2793.6,2792.9,0.1789]
[1643804291053,2.12948463,2793.6,2792.9,0.1789]
[1643804291254,2.43777522,2793.6,2792.9,0.1789]
[1643804291652,2.42948463,2793.6,2792.9,0.1789]
[1643804293710,0.2446665,2793.1,2792.9,0.1789]
[1643804293910,0.24859113,2793.2,2792.9,0.1789]
[1643804294113,0.24859113,2793.2,2792.8,0.4289]
[1643804296118,2.2233,2793.6,2792.8,0.4289]
[1643804297054,0.20859617,2793.4,2792.8,0.4289]
[1643804298858,0.10859617,2793.4,2792.8,0.4289]
[1643804299458,0.10859617,2793.4,2792.8,0.25]
[1643804301708,0.11694223,2793.4,2792.8,0.25]
[1643804301907,0.10859617,2793.4,2792.8,0.25]
[1643804302110,0.13,2793.3,2792.8,0.25]
[1643804302911,0.25413641,2792.9,2792.8,0.25]
[1643804313857,0.3,2793.1,2792.8,0.25]
[1643804314062,0.26872646,2793.0,2792.8,0.25]
[1643804315061,0.25872646,2793.0,2792.8,0.25]
[1643804317806,0.25872646,2793.0,2792.9,1.52051331]
[1643804318208,0.21972646,2793.0,2792.9,1.52051331]
[1643804319009,0.21972646,2793.0,2792.9,1.52052278]
[1643804322563,0.21972646,2793.0,2792.8,0.25]
[1643804322762,0.21972646,2793.0,2792.9,1.52050283]
[1643804333904,0.21972646,2793.0,2792.5,1.52050283]
[1643804334376,0.21972646,2793.0,2792.6,1.52050283]
[1643804334565,0.21972646,2793.0,2792.7,1.52050283]
[1643804334767,0.21972646,2793.0,2792.8,1.52050283]
[1643804334963,0.21972646,2793.0,2792.9,1.52050283]
[1643804335366,0.21972646,2793.0,2792.3,1.52050283]
[1643804335668,0.21972646,2793.0,2792.4,1.69940283]
[1643804335669,0.79184136,2792.7,2792.4,1.69940283]
[1643804335871,1.09184136,2792.7,2791.9,0.1789]
[1643804336066,1.09184136,2792.7,2792.0,1.52076355]
[1643804336067,0.13,2792.6,2792.0,1.52076355]
[1643804336266,0.13,2792.6,2791.7,3.3313]
[1643804336267,0.13,2792.6,2792.1,1.52076355]
[1643804336472,0.13,2792.6,2792.2,1.52076355]
[1643804336671,0.19381305,2792.5,2791.7,3.3313]
[1643804336871,0.13,2792.4,2791.8,1.52082616]
[1643804337072,0.13,2792.4,2791.9,1.52082616]
[1643804337273,0.13,2792.4,2792.0,1.52082616]
[1643804337470,0.13,2792.4,2792.1,1.52082616]
[1643804337671,0.13,2792.4,2792.2,1.52082616]
[1643804337873,0.13,2792.4,2791.5,0.65739536]
[1643804338105,0.21475351,2791.8,2791.5,2.17822897]
[1643804338311,0.21475351,2791.8,2791.4,0.19143832]
[1643804338312,1.193,2792.3,2791.6,1.52083361]
[1643804338512,1.193,2792.3,2791.4,0.84883368]
[1643804338513,0.25054973,2791.8,2791.7,1.52083361]
[1643804338712,0.25054973,2791.8,2791.5,1.52083361]
[1643804340915,0.25054973,2791.8,2791.4,2.19076729]
[1643804341114,0.25054973,2791.8,2791.5,1.52083361]
[1643804341716,0.3,2791.7,2791.5,1.52083361]
[1643804342155,0.25054973,2791.8,2791.6,1.52083361]
[1643804342355,0.25054973,2791.8,2791.2,0.1791]
[1643804342356,0.25054973,2791.8,2791.7,1.52083361]
[1643804343266,0.25054973,2791.8,2791.3,1.52083361]
[1643804344665,0.88479611,2791.5,2791.3,1.52083361]
[1643804344967,0.88479611,2791.5,2791.0,0.04866096]
[1643804344968,0.43,2791.4,2791.0,0.04866096]
[1643804345806,0.26169433,2791.3,2791.0,0.04866096]
[1643804346009,0.26169433,2791.3,2790.5,0.1791]
[1643804346608,0.26169433,2791.3,2790.4,0.1791]
[1643804347008,0.88541152,2790.9,2790.4,0.1791]
[1643804347407,0.19674702,2790.8,2790.4,0.1791]
[1643804348813,0.19674702,2790.8,2790.3,0.1791]
[1643804349515,0.49674702,2790.8,2790.3,0.1791]
[1643804349713,0.49674702,2790.8,2789.9,0.18159265]
[1643804349714,0.1791,2790.7,2789.9,0.18159265]
[1643804349913,0.1791,2790.7,2789.9,0.00249265]
[1643804350319,0.4791,2790.7,2789.9,0.00249265]
[1643804350518,0.24961427,2790.1,2789.9,0.00249265]
[1643804350718,0.24961427,2790.1,2789.8,0.156]
[1643804352119,0.24961427,2790.1,2789.6,0.18159265]
[1643804352319,0.24961427,2790.1,2789.6,0.1791]
[1643804352320,0.54961427,2790.1,2789.6,0.1791]
[1643804352518,0.84961427,2790.1,2789.6,0.1791]
[1643804353121,6.35,2790.0,2788.9,0.1791]
[1643804353326,6.35,2790.0,2788.7,9.33019296]
[1643804353327,2.1792,2790.0,2789.2,0.00250737]
[1643804353529,0.516,2789.9,2789.2,0.00250737]
[1643804353727,0.3,2789.7,2789.2,0.00250737]
[1643804354025,0.3,2789.7,2788.4,0.00250737]
[1643804354026,0.84889769,2788.9,2788.4,0.00250737]
[1643804354326,0.39831476,2789.6,2788.4,0.18170737]
[1643804354526,0.39831476,2789.6,2788.4,0.20487737]
[1643804354527,0.39716859,2789.6,2788.4,0.20487737]
[1643804354726,0.68935201,2789.6,2788.5,2.1792]
[1643804354926,0.68935201,2789.6,2788.6,0.00250737]
[1643804355126,0.22553394,2789.1,2788.6,0.00250737]
[1643804355326,0.92916895,2788.8,2788.6,0.00250737]
[1643804355528,0.3,2788.8,2788.4,0.1792]
[1643804355729,0.52553394,2789.1,2788.3,0.18170737]
[1643804355926,0.1792,2789.0,2788.3,0.00250737]
[1643804356527,0.1792,2789.0,2788.9,0.5]
[1643804356727,1.05376122,2789.0,2788.9,0.5]
[1643804356962,1.05376122,2789.0,2788.0,0.1792]
[1643804356963,3.44944461,2789.0,2788.0,0.1792]
[1643804357163,0.3,2788.8,2788.0,0.1792]
[1643804357361,0.19338734,2788.7,2788.0,0.1792]
[1643804358261,3.92317461,2789.0,2788.0,0.1792]
[1643804358262,2.65545017,2789.0,2788.0,0.1792]
[1643804358462,0.3,2788.8,2788.0,0.1792]
[1643804358764,6.6402,2789.1,2787.5,0.1792]
[1643804358765,0.1299,2788.9,2787.5,0.1792]
[1643804358962,7.53683,2789.1,2787.5,0.1792]
[1643804358963,2.1298,2789.0,2787.5,0.1292]
[1643804359563,3.1298,2789.0,2787.5,0.1292]
[1643804359762,2.1298,2789.0,2787.5,0.1292]
[1643804359964,0.22773294,2788.2,2787.5,0.1292]
[1643804361218,0.89266939,2788.1,2787.5,0.1292]
[1643804361617,0.3,2788.0,2787.5,0.1292]
[1643804361819,0.89266939,2788.1,2787.5,0.1292]
[1643804362417,7.20134883,2788.8,2787.5,0.1292]
[1643804362621,1.4033,2788.8,2787.6,0.1794]
[1643804362817,1.4033,2788.8,2787.5,0.1429752]
[1643804363016,1.2241,2788.8,2787.5,0.1429752]
[1643804363422,0.76643469,2788.4,2787.5,0.1429752]
[1643804363621,0.25694933,2788.3,2787.5,0.1292]
[1643804364221,0.76643469,2788.4,2787.5,3.36551919]
[1643804364465,0.76643469,2788.4,2787.5,3.44413613]
[1643804364672,0.76643469,2788.4,2787.6,1.0]
[1643804364868,0.76643469,2788.4,2787.4,0.66716067]
[1643804364869,1.06643469,2788.4,2787.7,1.6368318]
[1643804365069,1.06643469,2788.4,2787.5,0.1792]
[1643804365270,1.06643469,2788.4,2787.6,1.43528174]
[1643804365271,1.36643469,2788.4,2787.6,1.43528174]
[1643804365773,0.20756238,2787.7,2787.5,0.1792]
[1643804366073,0.6,2788.4,2787.5,0.1792]
[1643804366271,1.4033,2788.8,2787.6,1.43355574]
[1643804366570,1.4033,2788.8,2787.5,0.1792]
[1643804366571,0.3,2788.4,2787.5,0.1792]
[1643804366771,2.0033,2788.8,2787.4,0.15116067]
[1643804366973,2.0033,2788.8,2787.5,1.43345157]
[1643804367171,2.0033,2788.8,2787.4,0.15116067]
[1643804367371,0.93141994,2788.2,2787.5,1.43258226]
[1643804367970,2.0033,2788.8,2787.5,1.43258226]
[1643804368920,2.0033,2788.8,2787.6,2.31627296]
[1643804368921,1.01688361,2788.8,2787.6,2.31627296]
[1643804369117,1.01688361,2788.8,2788.0,0.01292124]
[1643804369118,0.24646936,2788.5,2788.0,0.01292124]
[1643804369719,0.24646936,2788.5,2787.6,0.1792]
[1643804369917,0.69811052,2788.3,2787.6,0.1792]
[1643804370121,0.24646936,2788.5,2787.6,0.1792]
[1643804370317,0.24646936,2788.5,2787.5,0.1792]
[1643804370520,0.24646936,2788.5,2787.6,1.40282195]
[1643804370717,0.24646936,2788.5,2787.5,2.1986704]
[1643804370919,0.24646936,2788.5,2787.5,0.1792]
[1643804371124,1.05960988,2788.5,2787.5,2.26491428]
[1643804371323,1.05960988,2788.5,2787.6,1.40286249]
[1643804371521,1.35960988,2788.5,2787.6,1.40286249]
[1643804371719,1.35960988,2788.5,2787.5,0.1792]
[1643804372560,1.35960988,2788.5,2787.5,1.50836206]
[1643804372760,1.35960988,2788.5,2787.5,0.1792]
[1643804373162,1.35960988,2788.5,2787.6,1.40259743]
[1643804373363,1.35960988,2788.5,2787.7,0.1792]
[1643804373769,1.35960988,2788.5,2787.5,0.1792]
[1643804373966,1.35960988,2788.5,2787.6,1.40288353]
[1643804374265,1.35960988,2788.5,2787.7,0.1792]
[1643804374664,1.35960988,2788.5,2787.5,0.1792]
[1643804374863,1.35960988,2788.5,2787.6,1.40344671]
[1643804375064,1.35960988,2788.5,2787.7,0.1792]
[1643804375266,1.11314052,2788.5,2787.7,0.1792]
[1643804375467,1.11314052,2788.5,2787.5,0.1792]
[1643804375708,1.11314052,2788.5,2787.6,1.40420424]
[1643804375908,1.11314052,2788.5,2787.7,0.1792]
[1643804376109,0.3,2788.5,2787.7,0.1792]
[1643804376315,0.21557358,2788.5,2787.5,0.1792]
[1643804376510,0.21557358,2788.5,2787.6,1.40524354]
[1643804376714,0.21557358,2788.5,2787.7,0.1792]
[1643804376915,0.7792,2788.7,2787.7,0.0792]
[1643804377115,0.69195126,2788.6,2787.5,0.1792]
[1643804377316,0.69195126,2788.6,2787.6,1.40534796]
[1643804377716,0.1792,2788.7,2787.6,1.40534796]
[1643804377917,0.1792,2788.7,2787.8,0.19270882]
[1643804378119,0.1792,2788.8,2787.9,1.93372068]
[1643804378318,1.2443,2789.2,2788.0,1.40534796]
[1643804378319,0.97382275,2789.2,2788.0,1.40534796]
[1643804378519,0.1793,2789.1,2788.1,0.1792]
[1643804378718,1.27382275,2789.2,2788.1,0.1792]
[1643804378923,1.27382275,2789.2,2788.2,1.40534796]
[1643804379219,0.22562955,2789.0,2788.2,0.00250855]
[1643804379462,0.1792,2788.9,2788.2,0.00250855]
[1643804379666,0.1792,2788.9,2788.1,1.34597]
[1643804380363,2.223574,2788.9,2788.2,0.00250855]
[1643804380564,2.22385358,2788.9,2788.2,0.00250855]
[1643804380763,0.1792,2788.9,2788.2,0.00250855]
[1643804381162,2.19976962,2788.9,2788.2,0.00250855]
[1643804381569,0.3,2788.8,2788.2,0.00250855]
[1643804381767,0.73524327,2788.6,2788.0,0.00250855]
[1643804381965,0.20100379,2788.5,2788.0,0.00250855]
[1643804382164,0.73524327,2788.6,2788.0,1.41031507]
[1643804382763,0.3,2788.8,2788.0,1.41031507]
[1643804382965,0.3,2788.8,2788.1,0.00250855]
[1643804383226,0.23924953,2788.8,2788.1,0.00250855]
[1643804383826,1.12089978,2788.8,2788.1,0.00250855]
[1643804384233,1.42089978,2788.8,2788.1,0.00250855]
[1643804384927,1.72089978,2788.8,2788.1,1.41031507]
[1643804385128,1.72089978,2788.8,2788.0,1.40780652]
[1643804385129,2.0900974,2788.7,2788.0,1.40780652]
[1643804385327,2.0900974,2788.7,2788.1,1.40780652]
[1643804385531,2.0900974,2788.7,2788.2,1.40780652]
[1643804385729,1.72089978,2788.8,2787.8,0.00250855]
[1643804385730,0.22041919,2788.0,2787.8,0.00250855]
[1643804386128,0.22041919,2788.0,2787.6,1.35211955]
[1643804386729,0.78460616,2788.2,2787.6,1.35211955]
[1643804386962,0.78460616,2788.2,2787.6,1.3546281]
[1643804387162,1.08460616,2788.2,2787.6,1.3546281]
[1643804388266,1.08460616,2788.2,2787.0,1.0]
[1643804388267,0.26934782,2787.9,2787.7,1.35211955]
[1643804388466,0.26934782,2787.9,2787.8,1.35211955]
[1643804388667,0.26934782,2787.9,2787.1,0.18170855]
[1643804388668,0.26934782,2787.9,2787.2,1.35211955]
[1643804388866,0.26934782,2787.9,2787.2,1.3546281]
[1643804389068,0.26934782,2787.9,2787.3,1.35211955]
[1643804390275,0.69879345,2787.7,2787.3,1.35211955]
[1643804392821,2.36654747,2787.6,2787.3,1.35211955]
[1643804393318,2.66654747,2787.6,2787.4,1.35211955]
[1643804393519,2.66654747,2787.6,2787.5,1.35211955]
[1643804393520,2.36654747,2787.6,2787.5,1.35211955]
[1643804393719,2.068,2787.6,2787.5,1.35211955]
[1643804393919,0.3,2787.6,2787.5,1.35211955]
[1643804394119,2.34661864,2787.6,2787.0,1.3546281]
[1643804394367,2.34661864,2787.6,2787.1,1.35211955]
[1643804394572,2.34661864,2787.6,2787.0,1.3546281]
[1643804394573,2.64661864,2787.6,2787.0,1.3546281]
[1643804394767,2.82581864,2787.6,2787.1,1.35211955]
[1643804395066,2.82581864,2787.6,2787.2,1.35211955]
[1643804395067,0.24348655,2787.5,2787.2,1.35211955]
[1643804395268,0.4792,2787.4,2787.0,0.00250855]
[1643804395470,2.47668159,2787.4,2786.9,1.1106382]
[1643804395867,2.17668159,2787.4,2786.9,1.1106382]
[1643804396266,0.89657905,2787.2,2786.9,1.1106382]
[1643804397077,2.02627356,2787.4,2786.9,1.1106382]
[1643804397275,0.42288655,2787.5,2786.9,1.1106382]
[1643804397474,2.45575313,2787.5,2786.9,1.1106382]
[1643804397675,0.42288655,2787.5,2786.9,1.1106382]
[1643804398320,0.3,2787.6,2786.9,1.1106382]
[1643804398516,0.24564188,2787.4,2787.0,0.00250855]
[1643804398718,2.27738825,2787.3,2787.0,0.00250855]
[1643804399016,0.4003,2787.3,2787.0,0.00250855]
[1643804399215,0.4003,2787.3,2786.9,1.1106382]
[1643804400419,0.3,2787.3,2786.9,1.1106382]
[1643804400817,0.42484188,2787.4,2786.9,1.1106382]
[1643804400818,0.72484188,2787.4,2786.9,1.1106382]
[1643804401017,0.54564188,2787.4,2786.9,1.1106382]
[1643804401216,0.24564188,2787.4,2786.9,1.1106382]
[1643804401417,0.83889441,2787.0,2786.9,1.1106382]
[1643804401617,0.24564188,2787.4,2786.9,1.1106382]
[1643804402274,1.38384185,2787.4,2786.9,1.1106382]
[1643804402468,1.56304185,2787.4,2786.9,1.1106382]
[1643804402869,0.56304185,2787.4,2786.9,1.1106382]
[1643804403472,0.71278884,2787.0,2786.9,1.1106382]
[1643804403974,0.38384185,2787.4,2786.9,1.1106382]
[1643804404371,2.45030649,2787.4,2786.9,1.1106382]
[1643804404576,2.42285458,2787.4,2786.9,1.1106382]
[1643804405073,0.95139541,2787.0,2786.9,1.1106382]